Workbook

Sheet Sheet1
B1: Gross Pay | C1: Pension | D1: After pension | E1: Tax-free | F1: Taxable at 20% | G1: Taxable at 40% | H1: Tax at 45% | I1: National Insurance-free | J1: National Insurance at 12% | K1: National Insurance at 2% | L1: Net Income Yearly | M1: Monthly pay
B2: =IF(A4=1,RANDBETWEEN(8000,11850),IF(A4=2,RANDBETWEEN(11850,46350),IF(A4=3,RANDBETWEEN(46350,100000),"User Error"))) -> £12,868.00 | D2: =B2-C3 -> £12,868.00 | E2: =IF(D2>11850,11850,D2) -> £11,850.00 | F2: =IF(D2>11850,IF(D2>46350,(46350-11850),D2-E2),0) -> £1,018.00 | G2: =IF(D2>46350,IF(D2>150000,(150000-46350),D2-46350),0) -> £0.00 | H2: =IF(D2>150000,(D2-150000),0) -> £0.00 | I2: £8,424.00 | J2: =IF(D2>I2,IF(D2<46350,(D2-I2),(46350-I2)),0) -> £4,444.00 | K2: =IF(D2>46350,D2-46350,0) -> £0.00 | L2: =D2-(F3+G3+H3+J3+K3) -> £12,131.12 | M2: =L2/12 -> £1,010.93 | O2: Average tax rate | R2: Monthly payslip
A3: DEDUCTIONS | C3: =B2*C2 -> £0.00 | F3: =0.2*F2 -> £203.60 | G3: =0.4*G2 -> £0.00 | H3: =0.45*H2 -> £0.00 | J3: =0.12*J2 -> £533.28 | K3: =0.02*K2 -> £0.00 | O3: =SUM(F3:K3)/B2 -> 5.7% | R3: Gross pay | U3: =B2/12 -> £1,072.33
A4: =RANDBETWEEN(1,3) -> 2 | R4: Tax | T4: =(F3+G3)/12 -> £16.97
R5: NI | T5: =(J3+K3)/12 -> £44.44
R6: Total deductions | U6: =T4+T5 -> £61.41
R8: NET PAY | U8: =U3-U6 -> £1,010.93
A12: press this button to randomly generate a new income between £6000 and £100000 | C12: press this button to randomly generate a new income between £6000 and £99998 | D12: press this button to randomly generate a new income between £6000 and £99999

Sheet Sheet2

Sheet Sheet3
